fUST/lending_fUST_20251208
["ID","MTS","AMOUNT","RATE_DAILY","PERIOD"]
[397443932,1765187433582,-500.0,5.193e-05,2]
[397443933,1765187433591,-500.0,5.193e-05,2]
[397443934,1765187433600,-500.0,5.193e-05,2]
[397443935,1765187433610,-500.0,5.193e-05,2]
[397443936,1765187433619,-500.0,5.193e-05,2]
[397443937,1765187433629,-500.0,5.193e-05,2]
[397443938,1765187433638,-500.0,5.193e-05,2]
[397443939,1765187433648,-500.0,5.193e-05,2]
[397443940,1765187433657,-500.0,5.193e-05,2]
[397443941,1765187433667,-500.0,5.193e-05,2]
[397443942,1765187433676,-500.0,5.193e-05,2]
[397443943,1765187433685,-500.0,5.193e-05,2]
[397443944,1765187433695,-500.0,5.193e-05,2]
[397443945,1765187433705,-204.31550435,5.193e-05,2]
[397443946,1765187433715,-500.0,5.193e-05,2]
[397443947,1765187433725,-500.0,5.193e-05,2]
[397443948,1765187433736,-500.0,5.193e-05,2]
[397443949,1765187433746,-500.0,5.193e-05,2]
[397443950,1765187433755,-500.0,5.193e-05,2]
[397443951,1765187433767,-500.0,5.193e-05,2]
[397443952,1765187433776,-500.0,5.193e-05,2]
[397443953,1765187433785,-500.0,5.193e-05,2]
[397443954,1765187433794,-500.0,5.193e-05,2]
[397443955,1765187433804,-500.0,5.193e-05,2]
[397443956,1765187433813,-300.0,5.193e-05,2]
[397443957,1765187433823,-500.0,5.193e-05,2]
[397443958,1765187433833,-500.0,5.193e-05,2]
[397443959,1765187433842,-500.0,5.193e-05,2]
[397443960,1765187433852,-500.0,5.193e-05,2]
[397443961,1765187433861,-498.25727432,5.194e-05,2]
[397443962,1765187433871,-171.807034,5.263e-05,2]
[397443963,1765187433880,-44719.8429981,5.304e-05,2]
[397443964,1765187433890,-300.0,5.304e-05,2]
[397443965,1765187433901,-300.0,5.304e-05,2]
[397443966,1765187433911,-300.0,5.304e-05,2]
[397443967,1765187433920,-300.0,5.304e-05,2]
[397443968,1765187433930,-300.0,5.304e-05,2]
[397443969,1765187433939,-300.0,5.304e-05,2]
[397443970,1765187433949,-300.0,5.304e-05,2]
[397443971,1765187433958,-300.0,5.304e-05,2]
[397443972,1765187433967,-300.0,5.304e-05,2]
[397443973,1765187433976,-300.0,5.304e-05,2]
[397443974,1765187433986,-300.0,5.304e-05,2]
[397443975,1765187433995,-300.0,5.304e-05,2]
[397443976,1765187434008,-300.0,5.304e-05,2]
[397443977,1765187434018,-300.0,5.304e-05,2]
[397443978,1765187434027,-300.0,5.304e-05,2]
[397443979,1765187434040,-600.0,5.304e-05,2]
[397443980,1765187434049,-500.0,5.479e-05,2]
[397443981,1765187434061,-500.0,5.479e-05,2]
[397443982,1765187434071,-250.0,5.479e-05,2]
[397443983,1765187434080,-500.0,5.479e-05,2]
[397443984,1765187434089,-500.0,5.479e-05,2]
[397443985,1765187434098,-500.0,5.479e-05,2]
[397443986,1765187434108,-500.0,5.479e-05,2]
[397443987,1765187434118,-500.0,5.479e-05,2]
[397443988,1765187434127,-500.0,5.479e-05,2]
[397443989,1765187434137,-500.0,5.479e-05,2]
[397443990,1765187434146,-500.0,5.479e-05,2]
[397443991,1765187434155,-503.37698726,5.479e-05,2]
[397443992,1765187434164,-500.0,5.479e-05,2]
[397443993,1765187434173,-420.0,5.711e-05,2]
[397443994,1765187434182,-1147.0,5.711e-05,2]
[397443995,1765187434191,-720.0,5.834e-05,2]
[397443996,1765187434200,-237.27740289,6.099e-05,2]
[397443997,1765187434209,-345.4793329,6.1e-05,2]
[397443998,1765187434218,-151.73,6.2e-05,2]
[397443999,1765187434227,-587.0,6.282e-05,2]
[397444000,1765187434237,-2487.15318209,6.304e-05,2]
[397444001,1765187434246,-864.0,6.418e-05,2]
[397444002,1765187434255,-250.0,6.626e-05,2]
[397444003,1765187434265,-968.27,6.802e-05,2]
[397444004,1765187434275,-2579.17784983,6.852e-05,2]
[397444005,1765187434284,-345.4793329,6.886e-05,2]
[397444006,1765187434294,-823.0,6.911e-05,2]
[397444007,1765187434303,-49150.97989113,6.96e-05,2]
[397444056,1765187438384,-147835.36582226,6.96e-05,2]
[397444253,1765187440536,-9782.9513003,6.96e-05,2]
[397444798,1765187446294,-277.312261,6.811e-05,2]
[397444800,1765187446306,-678.627739,6.811e-05,2]
[397444801,1765187446315,-881.372261,6.96e-05,2]
[397446552,1765187465898,151.73,5.1e-05,2]
[397449335,1765187525782,151.73,5.1e-05,2]
[397449336,1765187585825,151.73,5.1e-05,2]
[397449337,1765187645466,151.73,5.1e-05,2]
[397449338,1765187704770,151.73,5.1e-05,2]
[397449339,1765187767327,151.73,5.1e-05,2]
[397449346,1765187824467,151.73,5.1e-05,2]
[397449382,1765188241581,419.09858185,0.000101,3]
[397449416,1765188543705,250.0,0.00010099,3]
[397449462,1765188632462,-1165.4489358,5.986e-05,2]
[397449463,1765188632473,-34.5510642,5.986e-05,2]
[397449464,1765188632484,-506.0,5.986e-05,2]
[397449465,1765188632494,-300.0,5.987e-05,2]
[397449466,1765188632507,-300.0,5.987e-05,2]
[397449467,1765188632516,-135.4889358,5.987e-05,2]
[397449468,1765188632528,-164.5110642,5.987e-05,2]
[397449469,1765188632538,-548.5662927,5.987e-05,2]
[397449470,1765188632547,-500.0,5.987e-05,2]
[397449471,1765188632556,-500.0,5.987e-05,2]
[397449472,1765188632565,-500.0,5.987e-05,2]
[397449473,1765188632576,-194.81966525,5.987e-05,2]
[397449474,1765188632586,-500.0,5.987e-05,2]
[397449476,1765188632595,-500.0,5.987e-05,2]
[397449477,1765188632605,-500.0,5.987e-05,2]
[397449478,1765188632614,-500.0,5.987e-05,2]
[397449479,1765188632623,-490.79780636,5.987e-05,2]
[397449480,1765188632632,-500.0,5.987e-05,2]
[397449481,1765188632641,-500.0,5.987e-05,2]
[397449482,1765188632650,-500.0,5.987e-05,2]
[397449483,1765188632659,-489.76689706,5.987e-05,2]
[397449484,1765188632668,-491.84943709,5.988e-05,2]
[397449485,1765188632677,-500.0,5.989e-05,2]
[397449486,1765188632686,-500.0,5.989e-05,2]
[397449487,1765188632695,-500.0,5.989e-05,2]
[397449488,1765188632704,-500.0,5.989e-05,2]
[397449489,1765188632713,-500.0,5.989e-05,2]
[397449490,1765188632926,-500.0,5.989e-05,2]
[397449491,1765188632936,-30869.9809495,5.991e-05,2]
[397449492,1765188632945,-300.0,6.109e-05,2]
[397449493,1765188632954,-300.0,6.109e-05,2]
[397449494,1765188632964,-300.0,6.109e-05,2]
[397449495,1765188632974,-300.0,6.109e-05,2]
[397449496,1765188632984,-300.0,6.109e-05,2]
[397449497,1765188632993,-300.0,6.109e-05,2]
[397449498,1765188633003,-300.0,6.109e-05,2]
[397449499,1765188633012,-300.0,6.109e-05,2]
[397449500,1765188633022,-300.0,6.109e-05,2]
[397449501,1765188633031,-300.0,6.109e-05,2]
[397449502,1765188633041,-300.0,6.109e-05,2]
[397449503,1765188633051,-300.0,6.109e-05,2]
[397449504,1765188633060,-300.0,6.109e-05,2]
[397449505,1765188633070,-300.0,6.109e-05,2]
[397449506,1765188633079,-300.0,6.109e-05,2]
[397449507,1765188633088,-600.0,6.23e-05,2]
[397449508,1765188633098,-420.0,6.586e-05,2]
[397449509,1765188633107,-42592.46225696,6.76e-05,2]
[397449510,1765188633151,-27859.34621234,6.76e-05,2]
[397449518,1765188638534,-360.82507419,5.987e-05,2]
[397449520,1765188638547,-139.17492581,5.987e-05,2]
[397449522,1765188638556,-285.33483754,6.76e-05,2]
[397449526,1765188638594,-5000.0,6.76e-05,2]
[397449528,1765188638606,-998.80874545,6.76e-05,2]
[397449530,1765188638619,-361.0402447,6.76e-05,2]
[397449534,1765188638648,-1336.524237,6.76e-05,2]
[397449536,1765188638660,-568.50931855,6.76e-05,2]
[397449746,1765188640691,-260.76561014,6.76e-05,2]
[397449748,1765188640702,-350.0842972,6.76e-05,2]
[397449750,1765188640713,-4804.37105397,6.76e-05,2]
[397449754,1765188640745,-41745.06446631,6.76e-05,2]
[397451776,1765188663202,151.03,5.1e-05,2]
[397452529,1765188670900,151.0,5.1e-05,2]
[397458224,1765188731911,151.03,5.1e-05,2]
[397462010,1765188790125,151.03,5.1e-05,2]
[397462092,1765188848864,151.03,5.1e-05,2]
[397462111,1765188909682,151.03,5.1e-05,2]
[397462112,1765188969279,151.03,5.1e-05,2]
[397462114,1765189028925,151.03,5.1e-05,2]
[397462121,1765189088593,151.03,5.1e-05,2]
[397462125,1765189147564,151.03,5.1e-05,2]
[397462126,1765189208465,151.03,5.1e-05,2]
[397462127,1765189267614,151.03,5.1e-05,2]
[397462128,1765189327204,151.03,5.1e-05,2]
[397462183,1765189386112,151.03,5.1e-05,2]
[397462184,1765189446310,151.03,5.1e-05,2]
[397462186,1765189505720,151.03,5.1e-05,2]
[397462190,1765189565733,151.03,5.1e-05,2]
[397462195,1765189625520,151.03,5.1e-05,2]
[397462197,1765189686443,151.03,5.1e-05,2]
[397462202,1765189744026,250.0,0.00010098,3]
[397462203,1765189744925,151.03,5.1e-05,2]
[397462204,1765189804496,151.03,5.1e-05,2]
[397462210,1765189832560,-1038.83719804,5.321e-05,2]
[397462211,1765189832571,-1055.34061582,5.321e-05,2]
[397462212,1765189832580,-36.24850671,5.375e-05,2]
[397462213,1765189832592,-449.38472326,5.375e-05,2]
[397462214,1765189832601,-171.21292056,5.607e-05,2]
[397462215,1765189832611,-171.21292056,5.781e-05,2]
[397462216,1765189832621,-155.0,6.569e-05,2]
[397462217,1765189832631,-300.0,6.574e-05,2]
[397462218,1765189832641,-300.0,6.574e-05,2]
[397462219,1765189832650,-300.0,6.574e-05,2]
[397462220,1765189832659,-300.0,6.574e-05,2]
[397462221,1765189832668,-1200.0,6.574e-05,2]
[397462222,1765189832678,-153.0,6.575e-05,2]
[397462223,1765189832688,-153.0,6.575e-05,2]
[397462224,1765189832698,-153.0,6.575e-05,2]
[397462225,1765189832707,-68.27098792,6.575e-05,2]
[397462355,1765189838687,-84.72901208,6.575e-05,2]
[397462357,1765189838697,-153.0,6.575e-05,2]
[397462359,1765189838706,-153.0,6.575e-05,2]
[397462361,1765189838715,-109.27098792,6.575e-05,2]
[397462363,1765189838728,-43.72901208,6.575e-05,2]
[397462365,1765189838737,-153.0,6.58e-05,2]
[397462367,1765189838746,-76.08366007,6.58e-05,2]
[397462586,1765189840794,-76.91633993,6.58e-05,2]
[397462588,1765189840803,-306.0,6.63e-05,2]
[397462590,1765189840813,-153.0,6.63e-05,2]
[397462593,1765189840822,-250.0,6.636e-05,2]
[397462594,1765189840832,-387.75187745,6.659e-05,2]
[397462596,1765189840841,-259.14184394,6.659e-05,2]
[397462598,1765189840850,-221.19975626,6.659e-05,2]
[397462600,1765189840859,-372.0940543,6.659e-05,2]
[397462603,1765189840870,-127.9059457,6.659e-05,2]
[397462605,1765189840879,-348.52313178,6.659e-05,2]
[397462607,1765189840888,-476.7682238,6.659e-05,2]
[397462609,1765189840897,-3754.80842835,6.66e-05,2]
[397462932,1765189843883,-88230.37382574,6.66e-05,2]
[397463199,1765189846644,-2821.6626315,5.943e-05,2]
[397463201,1765189846653,-4378.33736842,6.66e-05,2]
[397463207,1765189846698,-1185.82761287,6.66e-05,2]
[397471715,1765190314335,616.78,0.0001508,30]
[397471717,1765190345854,497.0,0.000211,99]
[397471718,1765190394108,613.42,0.00015246,30]
[397471719,1765190555866,610.07,0.00014965,30]
[397471745,1765190944408,250.0,0.00010097,3]
[397471783,1765191031810,-866.0,6.172e-05,2]
[397471785,1765191031823,-185.77850472,6.173e-05,2]
[397471788,1765191031838,-4814.22149528,6.173e-05,2]
[397471790,1765191031850,-508.0,6.173e-05,2]
[397471792,1765191031861,-479.39796403,6.236e-05,2]
[397471795,1765191031874,-206.88305261,6.427e-05,2]
[397471797,1765191031886,-300.0,6.555e-05,2]
[397471799,1765191031899,-300.0,6.555e-05,2]
[397471802,1765191031916,-203.86618309,6.555e-05,2]
[397471857,1765191037786,-553.19985832,6.489e-05,2]
[397471860,1765191037797,-1053.67641307,6.489e-05,2]
[397471865,1765191037839,-3393.12372861,6.489e-05,2]
[397471867,1765191037848,-96.13381691,6.555e-05,2]
[397471869,1765191037858,-300.0,6.555e-05,2]
[397471871,1765191037867,-245.63500939,6.556e-05,2]
[397471873,1765191037876,-500.0,6.556e-05,2]
[397471875,1765191037885,-500.0,6.556e-05,2]
[397471877,1765191037894,-500.0,6.556e-05,2]
[397471880,1765191037903,-340.00627839,6.556e-05,2]
[397471883,1765191037912,-500.0,6.556e-05,2]
[397471885,1765191037921,-507.43072664,6.556e-05,2]
[397471887,1765191037931,-500.0,6.556e-05,2]
[397471889,1765191037940,-500.0,6.556e-05,2]
[397471891,1765191037949,-500.0,6.556e-05,2]
[397471893,1765191037958,-500.0,6.556e-05,2]
[397471895,1765191037967,-500.0,6.556e-05,2]
[397471897,1765191037976,-500.0,6.556e-05,2]
[397471899,1765191037985,-317.71395527,6.556e-05,2]
[397471901,1765191037994,-500.0,6.556e-05,2]
[397471903,1765191038003,-500.0,6.556e-05,2]
[397471905,1765191038012,-500.0,6.556e-05,2]
[397471908,1765191038022,-500.0,6.556e-05,2]
[397471910,1765191038031,-500.0,6.556e-05,2]
[397471912,1765191038040,-500.0,6.556e-05,2]
[397471914,1765191038050,-500.0,6.556e-05,2]
[397471915,1765191038059,-1200.0,6.557e-05,2]
[397471917,1765191038068,-300.0,6.557e-05,2]
[397471920,1765191038077,-525088.7289206,6.56e-05,2]
[397471949,1765191039995,-1796.49584665,6.56e-05,2]
[397471952,1765191040007,-28101.2518715,6.56e-05,2]
[397471954,1765191040018,-1000.0,6.56e-05,2]
[397471991,1765191040328,-2521.35523062,6.56e-05,2]
[397472078,1765191042960,-792.54,6.56e-05,2]
[397472079,1765191042971,-29029.89471544,6.56e-05,2]
[397472302,1765191045856,-69433.70658868,6.56e-05,2]
[397472305,1765191045867,-59383.32954423,6.56e-05,2]
[397472671,1765191260604,-150.0,0.00013,9]
[397472672,1765191262598,-150.0,0.00013,9]
[397472673,1765191267604,-150.0,0.00013,9]
[397472674,1765191275310,-150.0,0.00013,9]
[397472675,1765191276315,-150.0,0.00013,9]
[397472676,1765191277729,-150.0,0.00013,9]
[397472677,1765191280760,-150.0,0.00013,9]
[397472678,1765191292803,-150.0,0.00013,9]
[397472679,1765191387090,151.0,8.219e-05,3]
[397472680,1765191387419,151.0,8.219e-05,3]
[397472681,1765191387715,151.0,8.219e-05,3]
[397472682,1765191388010,151.0,8.219e-05,3]
[397472683,1765191388302,151.0,8.219e-05,3]
[397472684,1765191388869,151.0,8.219e-05,3]
[397472685,1765191389181,151.0,8.219e-05,3]
[397472686,1765191389500,151.0,8.219e-05,3]
[397472687,1765191389971,151.0,8.219e-05,3]
[397472688,1765191390257,151.0,8.219e-05,3]
[397472689,1765191390544,151.0,8.219e-05,3]
[397472690,1765191390853,151.0,8.219e-05,3]
[397472691,1765191391224,151.0,8.219e-05,3]
[397472692,1765191392040,151.0,8.219e-05,3]
[397472693,1765191392112,151.0,8.219e-05,3]
[397472694,1765191392447,151.0,8.219e-05,3]
[397472695,1765191392625,151.0,8.219e-05,3]
[397472696,1765191392871,151.0,8.219e-05,3]
[397472697,1765191393149,151.0,8.219e-05,3]
[397472698,1765191393462,151.0,8.219e-05,3]
[397472699,1765191393832,151.0,8.219e-05,3]
[397472700,1765191394119,256.440241,8.219e-05,3]
[397472702,1765191683148,6253.0,5.1e-05,2]
[397472704,1765191880280,766.20667426,9.948e-05,3]
[397472709,1765192102713,9701.5992408,5.013e-05,2]
[397472710,1765192143876,250.0,0.00010096,3]
[397472721,1765192232367,-257.29466007,5.459e-05,2]
[397473203,1765192243356,-894.2159597,5.459e-05,2]
[397473470,1765192246024,-929.76762306,5.459e-05,2]
[397473477,1765192246079,-2568.3774746,5.459e-05,2]
[397480997,1765193343763,250.0,0.00010095,3]
[397481045,1765193432322,-1000.0,5.211e-05,2]
[397481505,1765193443479,-4000.0,5.211e-05,2]
[397481507,1765193443489,-469.81000475,5.317e-05,2]
[397481509,1765193443498,-250.0,5.458e-05,2]
[397481511,1765193443507,-1774.3341656,5.683e-05,2]
[397481513,1765193443516,-1200.0,5.72e-05,2]
[397481515,1765193443525,-300.0,5.721e-05,2]
[397481517,1765193443534,-205.0,5.721e-05,2]
[397481519,1765193443544,-500.0,5.721e-05,2]
[397481521,1765193443554,-500.0,5.721e-05,2]
[397481523,1765193443563,-500.0,5.721e-05,2]
[397481525,1765193443571,-500.0,5.721e-05,2]
[397481527,1765193443580,-500.0,5.721e-05,2]
[397481529,1765193443589,-500.0,5.721e-05,2]
[397481531,1765193443598,-500.0,5.721e-05,2]
[397481533,1765193443607,-500.0,5.721e-05,2]
[397481535,1765193443616,-500.0,5.721e-05,2]
[397481537,1765193443625,-500.0,5.721e-05,2]
[397481539,1765193443634,-500.0,5.721e-05,2]
[397481541,1765193443643,-500.0,5.721e-05,2]
[397481543,1765193443652,-595.48871733,5.721e-05,2]
[397481545,1765193443661,-500.0,5.721e-05,2]
[397481546,1765193443671,-500.0,5.721e-05,2]
[397481548,1765193443680,-500.0,5.721e-05,2]
[397481550,1765193443690,-500.0,5.721e-05,2]
[397481552,1765193443699,-500.0,5.721e-05,2]
[397481554,1765193443709,-500.0,5.721e-05,2]
[397481557,1765193443721,-300.0,5.737e-05,2]
[397481559,1765193443730,-300.0,5.737e-05,2]
[397481561,1765193443739,-300.0,5.737e-05,2]
[397481563,1765193443748,-300.0,5.737e-05,2]
[397481565,1765193443758,-300.0,5.737e-05,2]
[397481567,1765193443768,-300.0,5.737e-05,2]
[397481569,1765193443779,-300.0,5.737e-05,2]
[397481571,1765193443789,-300.0,5.737e-05,2]
[397481573,1765193443798,-300.0,5.737e-05,2]
[397481575,1765193443809,-300.0,5.737e-05,2]
[397481577,1765193443821,-300.0,5.737e-05,2]
[397481579,1765193443831,-300.0,5.737e-05,2]
[397481581,1765193443840,-300.0,5.737e-05,2]
[397481583,1765193443851,-300.0,5.737e-05,2]
[397481585,1765193443861,-300.0,5.737e-05,2]
[397481587,1765193443870,-306.0,5.74e-05,2]
[397481589,1765193443880,-153.0,5.74e-05,2]
[397481591,1765193443890,-153.0,5.74e-05,2]
[397481593,1765193443899,-153.0,5.74e-05,2]
[397481595,1765193443909,-600.0,5.851e-05,2]
[397481597,1765193443917,-153.652261,5.86e-05,2]
[397481599,1765193443927,-153.0,5.86e-05,2]
[397481601,1765193443936,-153.0,5.86e-05,2]
[397481603,1765193443945,-153.0,5.86e-05,2]
[397481605,1765193443954,-420.0,6.293e-05,2]
[397481607,1765193443963,-372.124,6.297e-05,2]
[397481609,1765193443972,-4935.59085132,6.36e-05,2]
[397481875,1765193446487,-1513.24810086,6.36e-05,2]
[397483204,1765194543239,250.0,0.00010094,3]
[397483238,1765194632381,-841.6034007,5.414e-05,2]
[397483239,1765194632392,-1410.72508389,5.414e-05,2]
[397483240,1765194632439,-2747.67151541,5.414e-05,2]
[397483241,1765194632448,-464.04912846,5.539e-05,2]
[397483242,1765194632457,-300.0,5.746e-05,2]
[397483243,1765194632467,-500.0,5.747e-05,2]
[397483244,1765194632475,-500.0,5.747e-05,2]
[397483245,1765194632485,-455.05430192,5.747e-05,2]
[397483246,1765194632493,-300.0,5.748e-05,2]
[397483247,1765194632502,-300.0,5.748e-05,2]
[397483248,1765194632523,-300.0,5.748e-05,2]
[397483249,1765194632533,-300.0,5.748e-05,2]
[397483250,1765194632542,-300.0,5.748e-05,2]
[397483251,1765194632555,-300.0,5.748e-05,2]
[397483252,1765194632565,-300.0,5.748e-05,2]
[397483253,1765194632574,-300.0,5.748e-05,2]
[397483254,1765194632583,-300.0,5.748e-05,2]
[397483255,1765194632592,-300.0,5.748e-05,2]
[397483256,1765194632606,-300.0,5.748e-05,2]
[397483257,1765194632615,-300.0,5.748e-05,2]
[397483258,1765194632624,-300.0,5.748e-05,2]
[397483259,1765194632634,-300.0,5.748e-05,2]
[397483260,1765194632643,-300.0,5.748e-05,2]
[397483261,1765194632652,-251.75564597,6.005e-05,2]
[397483262,1765194632661,-297.699,6.135e-05,2]
[397483263,1765194632670,-88158.8119258,6.16e-05,2]
[397483264,1765194632681,-600.0,6.16e-05,2]
[397483836,1765194643495,-1518.91961997,6.16e-05,2]
[397484143,1765194646422,-4597.36693,6.16e-05,2]
[397488104,1765195742976,250.0,0.00010093,3]
[397488110,1765195832951,-459.64,5.42e-05,2]
[397488112,1765195832963,-4540.36,5.42e-05,2]
[397488114,1765195832972,-467.30432852,5.503e-05,2]
[397488116,1765195832982,-206.88305261,5.53e-05,2]
[397488118,1765195832991,-262.74,5.688e-05,2]
[397488120,1765195833001,-1200.0,5.736e-05,2]
[397488122,1765195833010,-22.21066496,5.737e-05,2]
[397488124,1765195833022,-277.78933504,5.737e-05,2]
[397488126,1765195833031,-300.0,5.737e-05,2]
[397488128,1765195833040,-300.0,5.737e-05,2]
[397488129,1765195833049,-1200.0,5.738e-05,2]
[397488130,1765195833059,-300.0,5.861e-05,2]
[397488131,1765195833068,-300.0,5.861e-05,2]
[397488132,1765195833078,-300.0,5.861e-05,2]
[397488133,1765195833087,-300.0,5.861e-05,2]
[397488134,1765195833095,-300.0,5.861e-05,2]
[397488135,1765195833105,-300.0,5.861e-05,2]
[397488137,1765195833115,-300.0,5.861e-05,2]
[397488139,1765195833125,-300.0,5.861e-05,2]
[397488141,1765195833135,-300.0,5.861e-05,2]
[397488143,1765195833145,-300.0,5.861e-05,2]
[397488144,1765195833154,-300.0,5.861e-05,2]
[397488145,1765195833163,-300.0,5.861e-05,2]
[397488146,1765195833173,-300.0,5.861e-05,2]
[397488147,1765195833183,-300.0,5.861e-05,2]
[397488148,1765195833193,-300.0,5.861e-05,2]
[397488149,1765195833202,-600.0,5.861e-05,2]
[397488150,1765195833216,-1292.13670919,6.06e-05,2]
[397488152,1765195833228,-82325.41840397,6.06e-05,2]
[397488183,1765195838505,-500.0,5.737e-05,2]
[397488185,1765195838515,-500.0,5.737e-05,2]
[397488187,1765195838525,-500.0,5.737e-05,2]
[397488189,1765195838535,-500.0,5.737e-05,2]
[397488191,1765195838544,-500.0,5.737e-05,2]
[397488193,1765195838554,-252.91582415,5.737e-05,2]
[397488195,1765195838566,-247.08417585,5.737e-05,2]
[397488197,1765195838576,-500.0,5.737e-05,2]
[397488199,1765195838586,-500.0,5.737e-05,2]
[397488201,1765195838595,-500.0,5.737e-05,2]
[397488203,1765195838605,-500.0,5.737e-05,2]
[397488205,1765195838615,-500.0,5.737e-05,2]
[397488207,1765195838624,-390.95837826,5.737e-05,2]
[397488212,1765195838656,-109.04162174,5.737e-05,2]
[397488215,1765195838666,-355.72422121,5.737e-05,2]
[397488247,1765195838912,-383.27098023,5.737e-05,2]
[397488249,1765195838932,-500.0,5.737e-05,2]
[397488251,1765195838942,-500.0,5.737e-05,2]
[397488253,1765195838952,-500.0,5.737e-05,2]
[397488255,1765195838962,-129.21507215,5.737e-05,2]
[397488445,1765195841122,-370.78492785,5.737e-05,2]
[397488448,1765195841133,-62.54662384,5.737e-05,2]
[397488453,1765195841182,-437.45337616,5.737e-05,2]
[397488455,1765195841193,-500.0,5.737e-05,2]
[397488457,1765195841203,-500.0,5.737e-05,2]
[397488459,1765195841212,-450.00000001,5.737e-05,2]
[397488461,1765195841222,-500.0,5.737e-05,2]
[397488463,1765195841232,-262.92722128,5.737e-05,2]
[397488465,1765195841244,-237.07277872,5.737e-05,2]
[397488467,1765195841254,-500.0,5.737e-05,2]
[397488469,1765195841265,-500.0,5.737e-05,2]
[397488471,1765195841275,-299.41084449,5.737e-05,2]
[397488473,1765195841285,-463.56144679,5.737e-05,2]
[397488475,1765195841297,-36.43855321,5.737e-05,2]
[397488477,1765195841307,-500.0,5.737e-05,2]
[397488479,1765195841317,-500.0,5.737e-05,2]
[397488481,1765195841327,-200.0,5.737e-05,2]
[397488483,1765195841336,-304.05945203,5.737e-05,2]
[397488487,1765195841374,-195.94054797,5.737e-05,2]
[397488489,1765195841384,-256.70848403,6.06e-05,2]
[397488896,1765195845948,-33650.13717941,6.06e-05,2]
[397488898,1765195845959,-289.54641168,6.06e-05,2]
[397488900,1765195845971,-27569.99999999,6.06e-05,2]
[397488903,1765195845982,-1135.04524533,6.06e-05,2]
[397488943,1765195846554,-1924.28,6.06e-05,2]
[397488944,1765195846565,-253.7425319,6.06e-05,2]
[397499747,1765196402564,3553.0,0.0001,3]
[397499755,1765196870011,200.0,0.0001,3]
[397499756,1765196942884,250.0,0.00010092,3]
[397499800,1765197032680,-474.11630145,5.371e-05,2]
[397499803,1765197032691,-323.0,5.371e-05,2]
[397499811,1765197032723,-300.64565095,5.371e-05,2]
[397499872,1765197038701,-3191.11228483,5.371e-05,2]
[397499879,1765197038758,-711.12576277,5.371e-05,2]
[397499881,1765197038768,-250.0,5.479e-05,2]
[397499883,1765197038778,-461.65775893,5.494e-05,2]
[397499885,1765197038787,-250.0,5.616e-05,2]
[397499887,1765197038796,-300.0,5.844e-05,2]
[397499889,1765197038805,-1200.0,5.844e-05,2]
[397499891,1765197038814,-500.0,5.845e-05,2]
[397499893,1765197038823,-500.0,5.845e-05,2]
[397499895,1765197038831,-186.22295083,5.845e-05,2]
[397500119,1765197040882,-313.77704917,5.845e-05,2]
[397500121,1765197040892,-500.0,5.845e-05,2]
[397500123,1765197040901,-500.0,5.845e-05,2]
[397500125,1765197040910,-500.0,5.845e-05,2]
[397500127,1765197040919,-500.0,5.845e-05,2]
[397500129,1765197040928,-500.0,5.845e-05,2]
[397500131,1765197040936,-500.0,5.845e-05,2]
[397500133,1765197040945,-500.0,5.845e-05,2]
[397500135,1765197040954,-500.0,5.845e-05,2]
[397500137,1765197040963,-500.0,5.845e-05,2]
[397500139,1765197040972,-500.0,5.845e-05,2]
[397500141,1765197040981,-422.04004308,5.845e-05,2]
[397500143,1765197040990,-409.4297464,5.845e-05,2]
[397500145,1765197040999,-500.0,5.845e-05,2]
[397500147,1765197041008,-500.0,5.845e-05,2]
[397500149,1765197041017,-500.0,5.845e-05,2]
[397500150,1765197041025,-14.75675907,5.845e-05,2]
[397500571,1765197045203,-485.24324093,5.845e-05,2]
[397500572,1765197045212,-135.26798289,5.845e-05,2]
[397500573,1765197045223,-364.73201711,5.845e-05,2]
[397500574,1765197045232,-500.0,5.845e-05,2]
[397500575,1765197045241,-500.0,5.845e-05,2]